bitfinex-derivatives/quotes_SOLF0:USTF0_20250923
["timestamp","ask_amount","ask_price","bid_price","bid_amount"]
[1758604159766,7.78,214.93,214.8,119.85]
[1758604160464,11.56588791,214.94,214.8,119.85]
[1758604160668,7.78,214.93,214.8,119.85]
[1758604160874,7.78,214.9,214.8,119.85]
[1758604162169,18.01275082,215.19,215.02,65.0536]
[1758604162476,64.9612,215.34,215.13,3.89588791]
[1758604162677,3.89588791,215.29,215.13,3.89588791]
[1758604162873,5.15662789,215.17,215.13,7.2]
[1758604163075,5.15662789,215.17,215.14,5.2101312]
[1758604163374,62.14,215.24,215.15,5.2101312]
[1758604163673,62.14,215.24,215.16,5.2101312]
[1758604163875,5.15662789,215.18,215.17,5.2101312]
[1758604164074,5.15662789,215.19,215.17,5.2101312]
[1758604164275,5.15662789,215.19,215.18,5.2101312]
[1758604164874,5.15662789,215.19,215.18,9.3856672]
[1758604167269,129.74,215.25,215.18,16.5856672]
[1758604167467,72.7758,215.22,215.19,9.3856672]
[1758604167672,7.78,215.21,215.2,9.3856672]
[1758604167871,7.78,215.21,215.2,9.18350624]
[1758604168080,65.0048,215.19,215.07,7.2]
[1758604168377,129.68,215.18,215.07,7.2]
[1758604168579,5.15662789,215.13,215.07,7.2]
[1758604168768,129.68,215.18,215.07,7.2]
[1758604168972,5.15662789,215.15,215.07,7.2]
[1758604169173,5.15662789,215.16,215.07,7.2]
[1758604169476,129.62,215.2,215.07,7.2]
[1758604169676,5.15662789,215.16,215.07,7.2]
[1758604169981,7.78,215.19,215.07,7.2]
[1758604170273,5.15662789,215.13,215.07,7.2]
[1758604172279,122.1391,215.18,215.07,7.2]
[1758604172581,5.15662789,215.13,215.07,7.2]
[1758604172979,4.1791,215.18,215.07,7.2]
[1758604173175,5.15662789,215.15,215.07,7.2]
[1758604173368,5.15662789,215.13,215.07,7.2]
[1758604173768,12.0295,215.16,215.07,7.2]
[1758604173971,4.1799,215.14,215.07,7.2]
[1758604174282,5.15662789,215.11,215.07,7.2]
[1758604174473,5.15662789,215.11,215.01,7.4]
[1758604174778,7.85,215.16,215.03,7.4]
[1758604174974,5.15662789,215.11,215.03,7.4]
[1758604175377,7.85,215.16,215.03,7.4]
[1758604175674,5.15662789,215.11,215.03,7.4]
[1758604175877,5.15662789,215.1,215.03,7.4]
[1758604177780,5.15662789,215.09,215.03,7.4]
[1758604178181,12.0303,215.12,215.03,7.4]
[1758604178383,5.15662789,215.09,215.03,7.4]
[1758604178586,12.0303,215.12,215.03,7.4]
[1758604178776,5.15662789,215.09,215.03,7.4]
[1758604179282,12.0303,215.12,215.03,7.4]
[1758604179482,5.15662789,215.09,215.03,7.4]
[1758604179776,12.0303,215.12,215.03,7.4]
[1758604179777,5.15662789,215.1,215.03,7.4]
[1758604179976,5.15662789,215.1,215.04,8.56231818]
[1758604180174,7.85,215.24,215.06,7.4]
[1758604180481,7.85,215.24,215.05,8.56231818]
[1758604180482,7.85,215.31,215.18,7.4]
[1758604180678,5.15662789,215.27,215.2,7.4]
[1758604180879,5.15662789,215.27,215.21,8.56231818]
[1758604181082,5.15662789,215.27,215.23,7.4]
[1758604181383,5.15662789,215.27,215.24,8.56231818]
[1758604181584,5.15662789,215.27,215.25,8.56231818]
[1758604181886,5.15662789,215.26,215.23,7.4]
[1758604182083,5.15662789,215.26,215.24,8.54851066]
[1758604182278,7.85,215.31,215.25,8.54851066]
[1758604182480,5.15662789,215.26,215.23,7.4]
[1758604182779,5.15662789,215.27,215.24,8.54122828]
[1758604182978,5.15662789,215.27,215.25,8.54122828]
[1758604183177,5.15662789,215.27,215.26,8.54122828]
[1758604184189,7.85,215.31,215.26,8.54122828]
[1758604184488,5.15662789,215.28,215.27,8.54122828]
[1758604185285,7.85,215.31,215.27,8.54122828]
[1758604185486,5.15662789,215.29,215.28,8.54122828]
[1758604185684,7.85,215.31,215.28,8.54122828]
[1758604185885,7.85,215.31,215.29,8.54122828]
[1758604186081,7.85,215.31,215.3,8.54122828]
[1758604186786,13.00662789,215.31,215.3,8.54122828]
[1758604187690,5.15662789,215.31,215.3,8.54122828]
[1758604188195,7.85,215.41,215.3,15.94122828]
[1758604188387,64.9322,215.44,215.31,8.54122828]
[1758604188388,7.85,215.38,215.31,8.54122828]
[1758604188583,7.85,215.38,215.32,8.54122828]
[1758604188788,64.9454,215.39,215.33,8.54122828]
[1758604188983,7.85,215.38,215.28,7.4]
[1758604189184,5.15662789,215.32,215.29,4.2032548]
[1758604189389,5.15662789,215.32,215.3,4.2032548]
[1758604189587,5.15662789,215.32,215.31,4.2032548]
[1758604190192,7.85,215.38,215.31,4.2032548]
[1758604190495,7.85,215.38,215.32,4.2032548]
[1758604190691,5.15662789,215.35,215.33,11.6032548]
[1758604190997,5.15662789,215.35,215.34,4.2032548]
[1758604192695,7.85,215.38,215.34,4.2032548]
[1758604192891,7.85,215.38,215.35,4.2032548]
[1758604193088,7.85,215.38,215.36,4.2032548]
[1758604193290,7.85,215.38,215.37,4.2032548]
[1758604193896,13.00662789,215.38,215.37,4.2032548]
[1758604195193,13.00662789,215.38,215.33,7.4]
[1758604195401,5.15662789,215.35,215.34,4.09209136]
[1758604195796,7.85,215.38,215.34,4.09209136]
[1758604195994,13.00662789,215.35,215.22,7.4]
[1758604196198,13.00662789,215.35,215.23,4.09259168]
[1758604196199,5.15662789,215.29,215.23,4.09259168]
[1758604196394,5.15662789,215.29,215.24,4.09259168]
[1758604196594,127.2,215.33,215.25,11.49259168]
[1758604196795,5.15662789,215.29,215.27,7.4]
[1758604196990,5.15662789,215.29,215.28,11.49259168]
[1758604197195,140.7659,215.35,215.28,11.49259168]
[1758604197498,5.15662789,215.29,215.28,7.4]
[1758604197706,5.15662789,215.3,215.28,11.49898485]
[1758604198005,5.15662789,215.3,215.29,4.09898485]
[1758604199306,4.1752,215.38,215.29,15.55039461]
[1758604199505,5.15662789,215.36,215.3,7.69039461]
[1758604199807,5.15662789,215.36,215.32,7.4]
[1758604200002,5.15662789,215.36,215.33,4.09898485]
[1758604200205,5.15662789,215.36,215.34,4.09898485]
[1758604200399,5.15662789,215.36,215.35,4.07898485]
[1758604201691,12.59662789,215.36,215.35,4.07898485]
[1758604204602,16.77222789,215.36,215.27,7.29]
[1758604204905,5.15662789,215.33,215.29,7.29]
[1758604205105,5.15662789,215.33,215.3,10.8965437]
[1758604205299,7.44,215.35,215.31,3.6065437]
[1758604205497,5.15662789,215.33,215.32,3.6065437]
[1758604205898,7.44,215.35,215.32,3.6065437]
[1758604206095,5.15662789,215.33,215.3,7.29]
[1758604206410,5.15662789,215.33,215.31,3.61125047]
[1758604206706,4.1751,215.39,215.32,3.61125047]
[1758604206910,5.15662789,215.36,215.33,3.61125047]
[1758604207113,5.15662789,215.36,215.34,10.90125047]
[1758604207304,127.74,215.38,215.35,3.61125047]
[1758604207604,4.1751,215.39,215.36,3.61125047]
[1758604207805,5.15662789,215.37,215.34,7.29]
[1758604208103,5.15662789,215.37,215.35,3.62298469]
[1758604208307,5.15662789,215.37,215.36,3.62298469]
[1758604209211,12.59662789,215.37,215.36,3.62298469]
[1758604209412,15.0802961,215.37,215.36,3.62298469]
[1758604209705,15.0802961,215.37,215.3,3.88655949]
[1758604209908,2.48366821,215.35,215.31,3.62245633]
[1758604210114,7.44,215.34,215.32,3.62245633]
[1758604210311,11.616,215.34,215.33,3.62245633]
[1758604210611,16.77262789,215.34,215.33,3.62245633]
[1758604211405,5.15662789,215.34,215.27,13.6602277]
[1758604211606,4.1756,215.36,215.29,13.6602277]
[1758604211805,5.15662789,215.33,215.3,3.62283953]
[1758604212007,131.1956,215.36,215.32,7.29]
[1758604212214,5.15662789,215.35,215.33,3.62283953]
[1758604212411,5.15662789,215.35,215.34,7.68176176]
[1758604216809,9.33242789,215.35,215.34,4.05892223]
[1758604217202,9.33242789,215.35,215.34,7.68490568]
[1758604220119,16.78242789,215.35,215.34,4.05892223]
[1758604220914,131.19662789,215.35,215.34,4.05892223]
[1758604221313,7.45,215.39,215.35,7.55]
[1758604221513,131.09662789,215.38,215.36,4.05892223]
[1758604221715,131.09662789,215.38,215.37,4.05892223]
[1758604222420,129.935,215.39,215.37,4.05892223]
[1758604222614,129.935,215.39,215.35,7.55]
[1758604222813,5.15662789,215.38,215.36,7.61796776]
[1758604223008,4.1746,215.41,215.37,3.97601685]
[1758604223210,130.91662789,215.39,215.38,3.97601685]
[1758604223415,130.91662789,215.39,215.38,7.62345812]
[1758604223615,130.91662789,215.39,215.38,7.62864948]
[1758604224117,125.76,215.39,215.38,7.62864948]
[1758604225221,64.9128,215.5,215.38,15.17864948]
[1758604225222,7.45,215.47,215.38,15.17864948]
[1758604225518,353.94366821,215.49,215.38,15.17864948]
[1758604225519,125.6,215.46,215.43,7.55]
[1758604225720,125.6,215.46,215.44,7.62864948]
[1758604225917,125.6,215.46,215.45,7.62864948]
[1758604226719,130.75662789,215.46,215.45,7.62864948]
[1758604226925,138.20662789,215.46,215.45,7.62864948]
[1758604227423,12.60662789,215.46,215.45,7.62864948]
[1758604227722,137.96662789,215.46,215.45,7.62864948]
[1758604229919,137.96662789,215.46,215.45,0.49324948]
[1758604230122,137.96662789,215.46,215.45,4.948e-05]
[1758604230725,4.1741,215.44,215.37,3.88655949]
[1758604230922,5.15662789,215.42,215.36,3.88655949]
[1758604231115,9.33112789,215.42,215.36,3.88655949]
[1758604232014,9.33112789,215.42,215.35,13.9202277]
[1758604233523,124.94,215.41,215.35,13.9202277]
[1758604233721,130.09662789,215.41,215.35,13.9202277]
[1758604233923,124.94,215.41,215.35,13.9202277]
[1758604234919,4.1739,215.45,215.35,6.3702277]
[1758604235125,124.56,215.44,215.4,7.4]
[1758604235323,137.01662789,215.44,215.4,7.4]
[1758604235818,131.86,215.44,215.4,7.4]
[1758604236122,70.07527824,215.57,215.41,2.48366821]
[1758604236123,124.6,215.46,215.41,2.48366821]
[1758604236327,7.3,215.45,215.39,2.48366821]
[1758604236524,5.15662789,215.44,215.39,2.48366821]
[1758604236825,12.45662789,215.44,215.39,9.88366821]
[1758604237028,7.3,215.44,215.39,9.88366821]
[1758604237223,124.6,215.46,215.4,7.4]
[1758604237526,12.45662789,215.44,215.4,7.4]
[1758604237928,7.3,215.44,215.4,7.4]
[1758604239429,128.7737,215.46,215.39,2.48366821]
[1758604239630,5.15662789,215.44,215.4,7.4]
[1758604240130,128.7737,215.46,215.4,7.4]
[1758604240331,128.7737,215.46,215.39,9.88366821]
[1758604240532,5.15662789,215.45,215.39,7.4]
[1758604242637,5.15662789,215.44,215.39,7.4]
[1758604242838,5.15662789,215.44,215.38,7.4]
[1758604243033,4.174,215.44,215.38,7.4]
[1758604243234,11.474,215.44,215.38,7.4]
[1758604244143,7.3,215.44,215.38,7.4]
[1758604245645,12.45662789,215.44,215.38,7.4]
[1758604246547,128.2338,215.46,215.38,7.4]
[1758604246845,124.06,215.46,215.39,7.4]
[1758604247041,5.15662789,215.44,215.38,8.06175949]
[1758604247240,5.15662789,215.45,215.4,7.4]
[1758604247647,5.15662789,215.45,215.39,8.05182999]
[1758604247847,5.15662789,215.45,215.4,7.4]
[1758604248047,5.15662789,215.45,215.39,8.05182999]
[1758604248240,5.15662789,215.45,215.39,15.45182999]
[1758604248641,5.15662789,215.44,215.39,15.45182999]
[1758604248942,5.15662789,215.44,215.39,8.05182999]
[1758604249144,134.9133,215.48,215.4,7.4]
[1758604249343,5.15662789,215.44,215.4,7.4]
[1758604249545,11.4728,215.51,215.42,7.4]
[1758604249744,7.3,215.51,215.43,7.4]
[1758604249941,451.40446623,215.56,215.45,3.87702999]
[1758604249942,130.54,215.54,215.45,3.87702999]
[1758604250141,5.15662789,215.51,215.46,7.4]
[1758604250341,5.15662789,215.51,215.45,3.87702999]
[1758604250541,130.54,215.54,215.46,7.4]
[1758604250747,130.54,215.54,215.48,3.87702999]
[1758604250748,5.15662789,215.51,215.48,3.87702999]
[1758604251050,5.15662789,215.51,215.49,7.4]
[1758604251240,7.3,215.54,215.49,7.4]
[1758604251741,5.15662789,215.53,215.48,11.27702999]
[1758604251945,123.2,215.56,215.49,7.4]
[1758604252148,5.15662789,215.54,215.52,7.4]
[1758604252348,7.3,215.58,215.52,7.4]
[1758604252349,5.15662789,215.55,215.52,7.4]
[1758604252848,7.3,215.58,215.52,7.4]
[1758604253150,5.15662789,215.55,215.52,7.4]
[1758604253346,5.15662789,215.56,215.52,7.4]
[1758604253541,7.3,215.58,215.52,4.1725]
[1758604253747,7.3,215.58,215.51,3.87702999]
[1758604253748,7.3,215.62,215.57,3.87702999]
[1758604253938,7.3,215.62,215.58,7.4]
[1758604253939,12.45662789,215.62,215.58,7.4]
[1758604254651,5.15662789,215.61,215.53,11.27702999]
[1758604254840,7.3,215.62,215.53,7.4]
[1758604255146,12.45662789,215.58,215.53,7.4]
[1758604255551,7.3,215.58,215.52,7.4]
[1758604255747,12.45662789,215.58,215.52,7.4]
[1758604255953,5.15662789,215.57,215.52,7.4]
[1758604256139,12.45662789,215.57,215.52,7.4]
[1758604256953,12.45662789,215.57,215.51,3.87702999]
[1758604257247,12.45662789,215.57,215.51,11.27702999]
[1758604257750,5.15662789,215.57,215.51,15.44962999]
[1758604259253,5.15662789,215.56,215.49,13.77987427]
[1758604259455,7.3,215.57,215.47,11.27702999]
[1758604259651,7.3,215.59,215.47,11.27702999]
[1758604259849,5.15662789,215.53,215.47,11.27702999]
[1758604260050,7.3,215.55,215.47,3.87702999]
[1758604260250,5.15662789,215.51,215.47,11.27702999]
[1758604260442,7.81,215.59,215.5,3.87702999]
[1758604260958,4.95629311,215.56,215.5,3.87702999]
[1758604261449,7.81,215.59,215.51,7.43]
[1758604261653,4.95629311,215.56,215.5,3.87702999]
[1758604261854,4.95629311,215.56,215.53,7.43]
[1758604262054,7.81,215.59,215.53,7.43]
[1758604262255,4.95629311,215.56,215.53,7.43]
[1758604262657,7.81,215.59,215.53,7.43]
[1758604262857,4.95629311,215.56,215.52,4.1724]
[1758604263058,4.95629311,215.56,215.53,7.43]
[1758604263254,7.81,215.59,215.53,7.43]
[1758604263460,4.95629311,215.56,215.53,7.43]
[1758604263649,4.95629311,215.57,215.52,4.1724]
[1758604263854,4.95629311,215.57,215.53,7.43]
[1758604264050,4.95629311,215.56,215.53,7.43]
[1758604264457,7.81,215.57,215.53,7.43]
[1758604264659,4.95629311,215.56,215.5,3.87702999]
[1758604265056,7.81,215.58,215.5,3.87702999]
[1758604265362,4.95629311,215.56,215.52,7.43]
[1758604265757,7.81,215.58,215.52,7.43]
[1758604266064,4.95629311,215.56,215.54,7.43]
[1758604266260,4.95629311,215.56,215.5,11.30702999]
[1758604266462,7.81,215.58,215.5,11.30702999]
[1758604266767,4.95629311,215.56,215.52,4.1725]
[1758604266960,4.95629311,215.56,215.52,7.43]
[1758604267467,4.95629311,215.56,215.5,11.30702999]
[1758604267670,7.81,215.58,215.51,7.43]
[1758604267865,7.81,215.61,215.54,7.43]
[1758604268167,4.95629311,215.6,215.57,4.1715]
[1758604268369,4.95629311,215.6,215.58,7.43]
[1758604268663,7.81,215.67,215.58,7.43]
[1758604269162,4.95629311,215.62,215.58,7.43]
[1758604270758,7.81,215.67,215.58,7.43]
[1758604270958,4.95629311,215.65,215.6,7.43]
[1758604271163,7.81,215.73,215.6,7.43]
[1758604271358,4.95629311,215.67,215.6,7.43]
[1758604271561,4.95629311,215.67,215.64,7.43]
[1758604271764,7.81,215.73,215.64,7.43]
[1758604272069,7.81,215.73,215.66,7.43]
[1758604272267,7.81,215.73,215.65,3.87702999]
[1758604272268,4.95629311,215.71,215.68,7.43]
[1758604273260,7.81,215.77,215.68,3.87702999]
[1758604273459,118.98,215.82,215.72,11.30702999]
[1758604273460,7.81,215.82,215.72,11.30702999]
[1758604273664,7.81,215.82,215.75,3.87702999]
[1758604273864,7.81,215.89,215.76,11.5978]
[1758604274069,4.95629311,215.8,215.77,7.43]
[1758604274265,4.95629311,215.8,215.76,4.1678]
[1758604274573,4.95629311,215.8,215.77,7.43]
[1758604274776,7.81,215.81,215.72,126.01702999]
[1758604275272,4.95629311,215.77,215.72,126.01702999]
[1758604275473,4.95629311,215.77,215.73,7.43]
[1758604275773,7.81,215.81,215.69,7.43]
[1758604275981,4.95629311,215.73,215.69,7.43]
[1758604276465,7.81,215.77,215.69,7.43]
[1758604276768,4.95629311,215.73,215.67,3.87702999]
[1758604277165,4.1666,215.83,215.7,3.87702999]
[1758604277373,7.3,215.82,215.71,7.05]
[1758604277671,4.95629311,215.76,215.74,7.05]
[1758604277868,4.95629311,215.77,215.74,7.05]
[1758604278070,4.95629311,215.77,215.72,3.87702999]
[1758604278259,7.3,215.76,215.69,10.92702999]
[1758604278665,4.95629311,215.73,215.69,10.92702999]
[1758604278866,4.95629311,215.73,215.7,7.05]
[1758604279071,7.3,215.76,215.7,7.05]
[1758604279270,4.95629311,215.73,215.7,7.05]
[1758604279465,7.3,215.76,215.7,7.05]
[1758604279666,4.95629311,215.73,215.7,7.05]
[1758604280166,7.3,215.76,215.7,7.05]
[1758604280372,4.95629311,215.73,215.7,7.05]
[1758604280768,7.3,215.76,215.7,7.05]
[1758604281066,4.95629311,215.73,215.7,7.05]
[1758604281473,7.3,215.76,215.7,7.05]
[1758604281771,4.95629311,215.73,215.7,7.05]
[1758604281972,11.467,215.81,215.7,7.05]
[1758604282168,4.95629311,215.75,215.69,4.1691]
[1758604282571,11.467,215.81,215.7,7.05]
[1758604282873,4.1673,215.79,215.69,7.05]
[1758604283077,7.3,215.78,215.69,7.05]
[1758604283270,4.95629311,215.73,215.69,7.05]
[1758604283668,7.3,215.78,215.69,7.05]
[1758604283869,4.95629311,215.73,215.68,63.5]
[1758604284266,64.8285,215.78,215.64,7.05]
[1758604284466,7.3,215.73,215.59,7.05]
[1758604284666,7.3,215.68,215.59,7.05]
[1758604284866,7.3,215.68,215.49,82.82024055]
[1758604284867,4.95629311,215.62,215.54,130.202]
[1758604285876,7.3,215.64,215.54,130.202]
[1758604286078,4.95629311,215.6,215.54,130.202]
[1758604286478,7.3,215.64,215.54,130.202]
[1758604286667,4.95629311,215.6,215.54,130.202]
[1758604286869,4.95629311,215.6,215.56,4.1716]
[1758604287072,7.3,215.69,215.59,7.05]
[1758604287278,4.95629311,215.65,215.59,7.05]
[1758604287774,64.8194,215.81,215.62,64.8753]
[1758604287980,4.95629311,215.69,215.63,79.79]
[1758604288368,7.3,215.75,215.63,79.79]
[1758604288574,4.95629311,215.7,215.63,79.79]
[1758604288877,7.3,215.71,215.6,6.2012256]
[1758604289080,7.3,215.71,215.6,2.37049]
[1758604289477,4.95629311,215.62,215.6,2.37049]
[1758604289888,7.3,215.7,215.6,2.37049]
[1758604290082,64.8495,215.71,215.6,2.37049]
[1758604290083,7.3,215.66,215.6,2.37049]
[1758604290284,12.25629311,215.61,215.6,2.37049]
[1758604290599,12.54629311,215.61,215.6,2.37049]
[1758604293199,13.00629311,215.61,215.6,2.37049]
[1758604295497,13.00629311,215.61,215.6,0.00049]
[1758604295997,7.59,215.57,215.49,3.8307356]
[1758604296195,7.59,215.53,215.47,3.8307356]
[1758604296397,4.95629311,215.5,215.45,3.8307356]
[1758604296697,4.95629311,215.5,215.44,11.1707356]
[1758604297097,7.59,215.53,215.44,11.1707356]
[1758604297300,7.59,215.57,215.46,11.1707356]
[1758604297497,4.95629311,215.51,215.46,3.8307356]
[1758604297903,7.59,215.57,215.46,15.3443356]
[1758604298196,4.95629311,215.51,215.47,7.34]
[1758604298398,4.95629311,215.51,215.46,8.0043356]
[1758604298605,7.59,215.57,215.46,8.0043356]
[1758604298797,4.95629311,215.51,215.47,7.34]
[1758604298999,4.1708,215.61,215.48,8.0038356]
[1758604299200,4.1708,215.61,215.49,11.1707356]
[1758604299405,64.8821,215.6,215.47,3.8307356]
[1758604299602,4.95629311,215.53,215.47,3.8307356]
[1758604300103,7.59,215.59,215.46,92.9707356]
[1758604300302,4.95629311,215.53,215.46,92.9707356]
[1758604300898,4.95629311,215.53,215.47,3.8307356]
[1758604301303,7.59,215.56,215.46,92.9707356]
[1758604301504,4.95629311,215.54,215.46,92.9707356]
[1758604301707,4.95629311,215.53,215.48,7.34]
[1758604301905,4.95629311,215.53,215.47,8.0041356]
[1758604302101,7.59,215.56,215.48,7.34]
[1758604302301,4.95629311,215.53,215.47,11.1707356]
[1758604302506,4.95629311,215.53,215.47,7.34]
[1758604302706,7.59,215.56,215.47,7.34]
[1758604303006,4.95629311,215.53,215.47,7.34]
[1758604303410,7.59,215.6,215.47,11.1707356]
[1758604303812,4.95629311,215.56,215.49,7.34]
[1758604304002,4.95629311,215.56,215.49,11.1707356]
[1758604304713,4.95629311,215.55,215.49,11.1707356]
[1758604305111,7.59,215.6,215.5,8.0035356]
[1758604305407,4.95629311,215.55,215.51,7.34]
[1758604305605,4.95629311,215.55,215.47,128.8640356]
[1758604306217,7.59,215.61,215.48,3.8307356]
[1758604306408,4.95629311,215.55,215.49,7.34]
[1758604306606,4.95629311,215.56,215.49,7.34]
[1758604307013,7.59,215.61,215.49,7.34]
[1758604307201,4.95629311,215.56,215.49,11.1707356]
[1758604307604,4.95629311,215.56,215.49,7.34]
[1758604308008,4.95629311,215.55,215.49,7.34]
[1758604308512,7.59,215.59,215.49,7.34]
[1758604308705,4.95629311,215.55,215.49,7.34]
[1758604308901,7.59,215.59,215.5,4.1728]
[1758604309112,4.95629311,215.55,215.51,7.34]
[1758604309510,7.59,215.59,215.51,7.34]
[1758604309711,4.95629311,215.55,215.51,7.34]
[1758604310103,7.59,215.59,215.51,7.34]
[1758604310307,4.95629311,215.55,215.51,7.34]
[1758604310513,12.54629311,215.55,215.51,7.34]
[1758604310807,4.1708,215.61,215.51,7.34]
[1758604311010,4.95629311,215.55,215.51,7.34]
[1758604311515,7.59,215.6,215.51,7.34]
[1758604311811,4.95629311,215.55,215.5,4.1728]
[1758604312212,7.59,215.6,215.5,11.5128]
[1758604312412,4.95629311,215.55,215.5,4.1728]
[1758604312607,7.59,215.6,215.51,7.34]
[1758604313113,4.95629311,215.55,215.51,7.34]
[1758604313613,7.59,215.6,215.5,11.5128]
[1758604313809,4.95629311,215.55,215.5,4.1728]
[1758604314019,4.95629311,215.55,215.51,7.34]
[1758604314210,7.59,215.6,215.51,7.34]
[1758604314509,4.95629311,215.55,215.51,7.34]
[1758604314914,7.59,215.6,215.51,7.34]
[1758604315215,4.95629311,215.55,215.51,7.34]
[1758604315604,7.59,215.6,215.51,7.34]
[1758604315808,4.95629311,215.55,215.51,7.34]
[1758604316513,7.59,215.6,215.5,72.2509]
[1758604316712,7.59,215.6,215.5,68.7416356]
[1758604316914,7.59,215.6,215.54,4.1719]
[1758604316915,4.95629311,215.58,215.54,4.1719]
[1758604317119,4.95629311,215.58,215.55,7.34]
[1758604317316,4.95629311,215.58,215.54,4.1719]
[1758604317510,7.59,215.64,215.57,7.34]
[1758604317712,7.59,215.68,215.55,125.44]
[1758604318014,4.95629311,215.62,215.55,125.44]
[1758604318613,7.59,215.68,215.57,7.34]
[1758604318910,4.95629311,215.63,215.57,7.34]
[1758604319117,4.95629311,215.64,215.62,11.5105]
[1758604319613,4.95629311,215.64,215.63,7.34]
[1758604320614,7.59,215.68,215.63,7.34]
[1758604320921,4.95629311,215.64,215.59,11.8411]
[1758604321313,7.59,215.68,215.59,11.8411]
[1758604321510,4.95629311,215.64,215.6,7.67]
[1758604321914,7.59,215.68,215.6,7.67]
[1758604322117,4.95629311,215.64,215.6,7.67]
[1758604322318,7.59,215.68,215.6,7.67]
[1758604322515,4.95629311,215.64,215.6,7.67]
[1758604322717,4.95629311,215.64,215.59,124.0711]
[1758604323017,7.59,215.68,215.6,7.67]
[1758604323214,4.95629311,215.64,215.6,7.67]
[1758604323418,4.95629311,215.64,215.59,119.9]
[1758604323626,7.59,215.68,215.6,11.5007356]
[1758604323815,7.25,215.77,215.63,7.67]
[1758604324016,4.95629311,215.68,215.67,11.8395]
[1758604324330,4.95629311,215.69,215.67,11.8395]
[1758604325123,4.95629311,215.69,215.67,7.67]
[1758604325321,4.95629311,215.68,215.63,2.47500202]
[1758604325524,2.47500202,215.69,215.62,119.7]
[1758604325822,4.95629311,215.65,215.63,7.67]
[1758604326624,4.95629311,215.65,215.62,119.7]
[1758604327320,7.25,215.7,215.62,119.7]
[1758604327525,4.95629311,215.64,215.6,123.8309]
[1758604327726,4.95629311,215.64,215.6,131.5009]
[1758604327917,4.95629311,215.63,215.59,3.8307356]
[1758604328122,7.25,215.71,215.58,11.5007356]
[1758604328322,4.95629311,215.64,215.59,3.8307356]
[1758604328628,4.95629311,215.62,215.59,3.8307356]
[1758604328831,4.95629311,215.62,215.58,7.67]
[1758604329025,7.25,215.66,215.58,7.67]
[1758604329228,7.25,215.66,215.58,3.8307356]
[1758604329229,4.95629311,215.62,215.58,3.8307356]
[1758604329431,4.95629311,215.62,215.59,7.67]
[1758604329628,7.25,215.66,215.59,7.67]
[1758604329826,7.25,215.7,215.61,11.5007356]
[1758604330026,4.95629311,215.64,215.61,7.67]
[1758604330425,7.25,215.78,215.63,3.8307356]
[1758604330626,4.95629311,215.68,215.65,7.67]
[1758604330822,4.95629311,215.68,215.64,3.8307356]
[1758604331033,7.25,215.74,215.65,7.67]
[1758604331330,4.95629311,215.7,215.66,3.8307356]
[1758604331828,4.95629311,215.7,215.67,7.67]
[1758604332031,7.25,215.74,215.68,4.1693]
[1758604332227,4.95629311,215.7,215.69,7.67]
[1758604332423,13.9551023,215.92,215.71,13.95]
[1758604332624,7.25,215.93,215.71,13.95]
[1758604332625,6.01836355,216.01,215.81,3.85841435]
[1758604332832,7.25,216.0,215.83,3.85841435]
[1758604333032,7.25,215.96,215.83,3.85841435]
[1758604333231,7.25,215.96,215.82,121.63]
[1758604333232,4.95629311,215.88,215.82,125.48841435]
[1758604333535,4.95629311,215.86,215.83,121.98]
[1758604333920,7.25,215.92,215.83,121.98]
[1758604334125,4.95629311,215.86,215.83,121.92]
[1758604334324,4.95629311,215.86,215.82,121.88]
[1758604334527,7.25,215.92,215.83,3.98032619]